Cogmind - Beta 11 @@@ ROGUE MODE // 2022.03.21 @ 07:49:12 Player: Chloroform Result: Destroyed by Y-45 Defender with Heavy Assault Rifle Performance ------------- Evolutions (1) 500 Regions Visited (2) 400 Robots Destroyed (39) 195 Value Destroyed (825) 825 Prototype IDs (4) 80 Alien Tech Used (0) 0 Bonus (0) 0 TOTAL SCORE: 2000 Bonus ------- None Cogmind --------- Core Integrity 0/400 Matter 500/500 Energy 100/100 System Corruption 0% Temperature Cool (9) Movement Core (400) Ox7 Location -9/Materials Parts ------- > --- POWER (1) -------- (None) > --- PROPULSION (4) --- (None) > --- UTILITY (2) ------ Large Storage Unit High-capacity Matter Pod > --- WEAPON (2) ------- (None) > --- INVENTORY (15) --- Ion Engine Light Ion Engine Light Treads Aluminum Leg Aluminum Leg Aluminum Leg Structural Scanner Pulse Rifle Assault Rifle Light Assault Rifle Peak State ------------ > --- POWER ------------ Ion Engine > --- PROPULSION ------- Aluminum Leg Aluminum Leg Aluminum Leg Aluminum Leg > --- UTILITY ---------- Small Storage Unit Hardlight Generator > --- WEAPON ----------- Assault Rifle Heavy Assault Rifle > --- INVENTORY -------- Ion Engine Aluminum Leg High-capacity Matter Pod Pulse Rifle Assault Rifle Assault Rifle Light Assault Rifle Light Assault Rifle [Rating: 13] Favorites ----------- Power Ion Engine Engine Ion Engine Propulsion Aluminum Leg Leg Aluminum Leg Utility Small Storage Unit Device Hardlight Generator Storage Small Storage Unit Processor Visual Processing Unit Protection Core Shielding Weapon Assault Rifle Energy Gun EM Pulse Gun Ballistic Gun Assault Rifle Build | -11 -10 -9 ------- Run | Scr Mat Mat Slots Evolved 2 | . . 2 Power . | . . . Propulsion 2 | . . 2 Utility . | . . . Weapon . | . . . Parts Attached 24 | . 11 13 Power 3 | . 1 2 Engine 3 | . 1 2 Core . | . . . Reactor . | . . . Propulsion 7 | . 3 4 Treads . | . . . Leg 7 | . 3 4 Wheel . | . . . Hover . | . . . Flight . | . . . Utility 6 | . 3 3 Device 1 | . . 1 Storage 3 | . 1 2 Processor 1 | . 1 . Hackware . | . . . Protection 1 | . 1 . Artifact . | . . . Weapon 8 | . 4 4 Energy Gun 2 | . 2 . Energy Cannon . | . . . Ballistic Gun 6 | . 2 4 Ballistic Cannon . | . . . Launcher . | . . . Special Weapon . | . . . Impact Weapon . | . . . Slashing Weapon . | . . . Piercing Weapon . | . . . Special Melee Weapon . | . . . Unidentified Prototypes . | . . . Parts Lost 12 | . . 12 Power 2 | . . 2 Propulsion 6 | . . 6 Utility . | . . . Weapon 4 | . . 4 Highest Loss Streak 7 | . . 7 To Critical Strikes . | . . . Average Slot Usage (%) 94 | . 99 89 Engine 12 | . 14 10 Leg 31 | . 28 36 Storage 19 | . 21 17 Processor 3 | . 4 2 Energy Gun 7 | . 13 . Ballistic Gun 17 | . 14 20 Naked Turns . | . . . Heaviest Build 35 | 13 15 35 Greatest Support 40 | 20 20 40 Greatest Overweight (x) 10 | . . 10 Average Overweight (x) . | . . . Largest Inventory Capacity 15 | . 8 15 Average Capacity 9 | . 8 11 Most Carried 11 | . 8 11 Average Carried 7 | . 7 7 Final Capacity 15 | 8 8 15 Final Carried 10 | 6 8 10 Class Distribution -------------------- 66% | Mutant 33% | Scavenger-Mutant Dominant Class ---------------- Mutant | -10/Materials Scavenger-Mutant | -9/Materials Resources | -11 -10 -9 ----------- Run | Scr Mat Mat Matter Collected 1072 | 186 466 420 Remotely . | . . . Salvage Created 1237 | . 582 655 Parts 93 | . 44 49 Haulers Intercepted . | . . . Recyclers Shooed 4 | . 2 2 Parts Field Recycled . | . . . Retrieved Matter . | . . . Parts Self-Destructed . | . . . Prevented . | . . . Kills | -11 -10 -9 ------- Run | Scr Mat Mat Combat Hostiles Destroyed 31 | . 14 17 Guns 31 | . 14 17 Classes Destroyed 8 | . 5 3 Worker 3 | . 2 1 Builder 1 | . . 1 Recycler 2 | . 1 1 Watcher 2 | . 1 1 Swarmer 14 | . 6 8 Grunt 14 | . 8 6 Duelist 1 | . . 1 Sentry 2 | . . 2 Best Kill Streak 5 | . 5 4 Combat Bots Only 4 | . 4 4 Max Kills in Single Turn 1 | . 1 1 Gunslinging . | . . . Exploded . | . . . Melee . | . . . Uniques/NPCs Destroyed . | . . . Combat | -11 -10 -9 -------- Run | Scr Mat Mat Damage Taken 1840 | . 373 1467 Core 455 | . 54 401 Absorbed by Shields . | . . . Core Remaining (%) 89 | 100 78 . Volleys Fired 101 | . 46 55 Largest 2 | . 2 2 Hottest 80 | . 80 46 Shots Fired 200 | . 90 110 Gun 200 | . 90 110 Cannon . | . . . Launcher . | . . . Special . | . . . Kinetic 152 | . 42 110 Thermal 4 | . 4 . Explosive . | . . . Electromagnetic 44 | . 44 . Robot Hit Streak 20 | . 13 20 Robot Miss Streak 5 | . 5 5 Penetration Max . | . . . Secondary Targets 4 | . 2 2 Max Gunslinging Chain 1 | . 1 1 Shots Hit Robots 130 | . 54 76 Core Hits 55 | . 25 30 Critical Kills . | . . . Critical Parts Destroyed 1 | . . 1 Critical Strikes 1 | . . 1 Destroy 1 | . . 1 Melee Attacks . | . . . Impact . | . . . Slashing . | . . . Piercing . | . . . Sneak Attacks . | . . . Combat Hostiles . | . . . Follow-up Attacks . | . . . Damage Inflicted 1826 | . 721 1105 Guns 1781 | . 676 1105 Cannons . | . . . Explosions 45 | . 45 . Melee . | . . . Ramming . | . . . Kinetic 1390 | . 285 1105 Thermal 57 | . 57 . Explosive . | . . . Electromagnetic 379 | . 379 . Impact . | . . . Slashing . | . . . Piercing . | . . . Highest Corruption 4 | . 4 . Average Corruption 3 | . 3 . Corruption Purged . | . . . Corruption Blocked . | . . . Effects 10 | . 10 . Message Errors 1 | . 1 . Matter Fused 3 | . 3 . Energy Discharges 2 | . 2 . Data Loss (minor) 2 | . 2 . Data Loss (major) 2 | . 2 . Overload Shots . | . . . Overflow Damage . | . . . Projectiles . | . . . Explosions . | . . . Melee . | . . . Knockbacks . | . . . Impact . | . . . Kinetic . | . . . Secondary . | . . . Self-Inflicted Damage . | . . . Shots . | . . . Rammed . | . . . Targets Rammed . | . . . Kicked . | . . . Crushed . | . . . Highest Temperature 138 | . 138 8 Average Temperature 45 | . 46 4 Received Heat Transfer 462 | . 96 366 Siege Activations . | . . . Robots Corrupted . | . . . Combat Hostiles . | . . . Parts Fried 1 | . 1 . Impact Corruptions . | . . . Robots Melted . | . . . Combat Hostiles . | . . . Parts Melted . | . . . Heat Transferred 75 | . 75 . Parts Sabotaged . | . . . Parts Stolen . | . . . Parts Stripped . | . . . Power Chain Reactions 1 | . 1 . Missiles Intercepted . | . . . Alert | -11 -10 -9 ------- Run | Scr Mat Mat Peak Influence 337 | . 259 337 Initial 53 | . . 53 Average 120 | . 72 178 Maximum Alert Level 1 | . 1 1 Low Security (%) 77 | . 96 53 Level 1 22 | . 3 46 Level 2 . | . . . Level 3 . | . . . Level 4 . | . . . Level 5 . | . . . High Security . | . . . Max Security . | . . . Squads Dispatched 6 | . 4 2 Investigation 2 | . 2 . Extermination . | . . . Reinforcement 4 | . 2 2 Assault . | . . . Garrison . | . . . Intercept . | . . . Searches Triggered . | . . . Construction Impeded . | . . . Haulers Reinforced . | . . . Active Scanning Responses . | . . . Cargo Convoy Interrupts . | . . . Stealth | -11 -10 -9 --------- Run | Scr Mat Mat Distress Signals 6 | . 2 4 Communications Jammed . | . . . Distress Signals . | . . . Times Spotted 53 | . 23 30 Peak Tracking Total 7 | . 5 7 Tactical Retreats 2 | . 1 1 Traps | -11 -10 -9 ------- Run | Scr Mat Mat Traps Triggered 3 | . 3 . Indirectly . | . . . Trap Hack Attempts . | . . . Triggered . | . . . Disarmed 3 | . 3 . Reprogrammed . | . . . Reused . | . . . Traps Extracted . | . . . Installed . | . . . Triggered . | . . . Machines | -11 -10 -9 ---------- Run | Scr Mat Mat Machines Disabled 2 | . 1 1 Max in Single Turn 1 | . 1 1 Machines Sabotaged . | . . . Garrisons Compromised . | . . . Overloaded Fab Kills . | . . . Hacking | -11 -10 -9 --------- Run | Scr Mat Mat Machines Accessed 6 | . 3 3 Terminals 6 | . 3 3 Fabricators . | . . . Repair Stations . | . . . Recycling Units . | . . . Scanalyzers . | . . . Garrison Access . | . . . Total Hacks 25 | . 15 10 Successful 17 | . 10 7 Failed 8 | . 5 3 Catastrophic . | . . . Database Lockouts . | . . . Manual 13 | . 9 4 Terminals 25 | . 15 10 Fabricators . | . . . Repair Stations . | . . . Recycling Units . | . . . Scanalyzers . | . . . Garrison Access . | . . . Terminal Hacks 14 | . 8 6 Record 2 | . 2 . Robot Analysis 2 | . 2 . Prototype ID Bank 3 | . . 3 Emergency Access Points 1 | . . 1 Recycling Unit Index 1 | . 1 . Alert Level 2 | . 1 1 Unreport Threat 1 | . 1 . Disarm Traps 1 | . 1 . Zone Layout 1 | . . 1 Fabricator Hacks . | . . . Repair Station Hacks . | . . . Recycling Unit Hacks . | . . . Scanalyzer . | . . . Garrison Access Hacks . | . . . Unauthorized Hacks 3 | . 2 1 Terminals 3 | . 2 1 Botnet 3 | . 2 1 Fabricators . | . . . Repair Stations . | . . . Recycling Units . | . . . Scanalyzers . | . . . Garrison Access . | . . . Data Cores Recovered . | . . . Used . | . . . Hacking Detections 6 | . 3 3 Full Trace Events 2 | . 2 . Feedback Events . | . . . Feedback Blocked . | . . . Robot Schematics Acquired . | . . . Robots Built . | . . . Authchips . | . . . Time . | . . . Total Robot Build Rating . | . . . Part Schematics Acquired . | . . . Parts Built . | . . . Authchips . | . . . Time . | . . . Total Part Build Rating . | . . . Parts Repaired . | . . . Time . | . . . Parts Recycled . | . . . Recycled Matter . | . . . Retrieved Matter . | . . . Retrieved Components . | . . . Parts Scanalyzed . | . . . Part Schematics Acquired . | . . . Parts Damaged . | . . . Bothacking | -11 -10 -9 ------------ Run | Scr Mat Mat Used RIF Installer . | . . . Robots Hacked . | . . . Non-combat . | . . . Combat . | . . . Robot Hacks Applied . | . . . Relay Couplers Released . | . . . Fabnet Peak Effective % . | . . . Robots Rewired . | . . . Allies Hacked . | . . . Hacks Repelled . | . . . Allies | -11 -10 -9 -------- Run | Scr Mat Mat Total Allies . | . . . Largest Group . | . . . Highest-Rated Group . | . . . Highest-Rated Ally . | . . . Total Orders . | . . . Ally Attacks . | . . . Total Damage . | . . . Kills . | . . . Allies Corrupted . | . . . Allies Melted . | . . . Intel | -11 -10 -9 ------- Run | Scr Mat Mat Robot Analysis Total 2 | . 2 . Derelict Logs Recovered . | . . . Drone Launches . | . . . Drone Recoveries . | . . . Exploration | -11 -10 -9 ------------- Run | Scr Mat Mat Turns Passed 1714 | . 933 781 Spaces Moved 994 | 1 612 381 Core 6 | . . 6 Treads . | . . . Legs 988 | 1 612 375 Wheels . | . . . Hover . | . . . Flight . | . . . Fastest Speed 120 | 120 120 120 Average Speed 127 | 120 120 140 Slowest Speed 550 | 120 120 550 Overloaded Moves . | . . . Propulsion Burnouts . | . . . Robots Hopped . | . . . Cave-ins Triggered . | . . . Exploration Rate (%) 41 | 2 84 39 Regions Visited 2 Branch Regions . Pre-discovered Areas . | . . . Known Exits Taken . | . . . Unknown Exits Taken 2 | 1 1 . Scrap Searched . | . . . Spaces Dug . | . . . Terrain Destroyed 3 | . 3 . Melee . | . . . Projectile . | . . . AOE 3 | . 3 . Terrain Rammed . | . . . Walls Destroyed . | . . . Machines Disabled . | . . . Actions | -11 -10 -9 --------- Run | Scr Mat Mat Total 1250 | . 732 518 Wait 81 | . 28 53 Move 992 | . 611 381 Hop . | . . . Pick Up 28 | . 16 12 Fast Attach 3 | . 3 . Attach 9 | . 1 8 Detach . | . . . Swap 12 | . 7 5 Drop 24 | . 20 4 Fire 101 | . 46 55 Melee . | . . . Ram . | . . . Kick . | . . . Crush . | . . . Escape Stasis . | . . . Rewire . | . . . Trap . | . . . Miscellaneous . | . . . Route ------- -11/Scrapyard -10/Materials (discovered 4 exits: *Mat x3 / [*Min]) -9/Materials (discovered 2 exits: [*Mat] / [*Min]) History --------- Turn | Location | Event 1 | -11/Scrapyard | Discovered new exit (range 0) 1 | -11/Scrapyard | Entered Materials 25 | -10/Materials | Discovered new exit (range 13) 288 | -10/Materials | Discovered new exit (range 8) 305 | -10/Materials | Build established: Mutant 661 | -10/Materials | Discovered new exit (range 17) 709 | -10/Materials | Discovered new exit (range 17) 934 | -10/Materials | Entered another Materials area 934 | -9/Materials | Evolved 2 slots: Propulsion x2 1180 | -9/Materials | Discovered new exit (range 3) 1227 | -9/Materials | Build established: Scavenger-Mutant 1243 | -9/Materials | Discovered new exit (range 16) 1560 | -9/Materials | Lost 7 parts (1p4n2w) 1644 | -9/Materials | Core integrity fell below 50% 1684 | -9/Materials | Core integrity fell below 20% 1715 | -9/Materials | Destroyed by Y-45 Defender with Heavy Assault Rifle Last Messages --------------- 01671_ Acquired Aluminum Leg. 01672_ Acquired 15 matter. 01684_ K-01 Serf collects debris. 01686_ R-06 Scavenger collects Wheel. 01687_ Aluminum Leg destroyed. 01689_ K-01 Serf collects debris. 01689_ Critical hit (Burn: +37). 01692_ Assault Rifle destroyed. 01694_ K-01 Serf cleans the Nuclear Reactor. 01694_ K-01 Serf collects debris. 01695_ Ion Engine destroyed. 01697_ K-01 Serf collects debris. 01699_ R-06 Scavenger destroyed. 01699_ K-01 Serf cleans the Nuclear Reactor. 01700_ K-01 Serf collects debris. 01703_ Acquired Aluminum Leg. 01703_ K-01 Serf cleans the Nuclear Reactor. 01704_ K-01 Serf collects debris. 01706_ K-01 Serf cleans the Nuclear Reactor. 01710_ K-01 Serf collects debris. Map ----- +----------------------------------------------------+ | ####### ^ !%[ ???????????????????? | | * == =""" #???????????????????? | | = =% % """"" #???????????????????? | | = """"" #???????????????????? | | ########+##### % """" #???????????????????? | | #####??? ??# "" #???????????????????? | | #? ?## % #???????????????????? | | ## ?# #???????????????????? | | ## ## """ #???????????????????? | | ## """ """ ## """ ####### ????????? | | ###### """ """ ## ^""" Y???????? | | ?????# """ """ ## Y "???????? | | ?????# ## !% ???????? | | ?????????###????# * ????????? | | ????????????????# o########+###????????? | | ????????????????# ! #???????????????????? | | ????????????????# =%! ####????????????????? | | ????????????????# = """#????????????????? | | ????????????????# ^ R"#????????????????? | | ????????????????# ^ """#????????????????? | | ???????????#+#### ""T"" ####????????????????? | | ?????????? """"" #???????????????????? | | ?????????? #???????????????????? | | ?????????? [%* #???????????????????? | | ????????????+############ k#???????????????????? | | ????????????????????????#@ #???????????????????? | | ????????????????????????# #???????????????????? | | ????????????????????????# #???????????????????? | | ????????????????????????# #???????????????????? | | ????????????????????????# k#???????????????????? | | ????????????????????????# ??????????????????? | | ????????????????????????# ?????????????????? | | ????????????????????????# """ "????????????????? | | ????????????????????????# """ ""???????????????? | | ????????????????????????# """ ""???????????????? | | ????????????????????????? ?? ???????????????? | | ????????????????????????? ??? ???????????????? | | ????????????????????????? "????? ??????????????? | | ????????????????????????? "?????? ??????????????? | | ????????????????????????? "?????????????????????? | | ????????????????????????? ??????????????????????? | | ????????????????????????? ??????????????????????? | | ?????????????????????????????????????????????????? | | ?????????????????????????????????????????????????? | | ?????????????????????????????????????????????????? | | ?????????????????????????????????????????????????? | | ?????????????????????????????????????????????????? | | ?????????????????????????????????????????????????? | | ?????????????????????????????????????????????????? | | ?????????????????????????????????????????????????? | +----------------------------------------------------+ Best States ------------- Heat Dissipation 28 Energy Generation 10 Energy Capacity 350 Matter Stores 500 Matter Capacity 500 Sight Range 18 Terrain Scan Density 10 Core Shielding 20 Evasion (%) 55 Item Schematics ----------------- None Robot Schematics ------------------ None Fabricated ------------ Nothing Alien Tech Used ----------------- None Achievements -------------- root@ Challenges ------------ None Game ------ Seed GyrokineticRagnarokBoomstick Manual? 0 Play Time 00:29:06 Cumulative 9.8 hours Start 2022.03.21 @ 07:22:04 End 2022.03.21 @ 07:49:12 Sessions 1 Manual Loads 0 Difficulty Rogue Special Mode None Game No. 15 Rogue 12 Adventurer 3 Explorer 0 Win Type - Total 0 Types 0/0/0/0/0/0/0/0/0 Lore% 12 Gallery% 18 Achievement% 17 Wizard Run 0 Options --------- ASCII 0 Keyboard 0 Movement Mouse Keybinds 0 Fullscreen 1 Font 18/SmallcapsGlow Map View 76x50 Tactical HUD 1 Map Filters NONE Filters NONE Steam 1 RUN: a8b587f1-964f-4180-88cc-245e47d44ee5